lending/lending_fUSD_20240605
["ID","MTS","AMOUNT","RATE_DAILY","PERIOD"]
[328578477,1717559449678,-150.0,0.000279,7]
[328578479,1717559449688,-1394.60569484,0.00027978,2]
[328578481,1717559449697,-1908.71297933,0.00027979,2]
[328578483,1717559449707,-260.5996056,0.00027979,2]
[328578485,1717559449716,-4030.00560469,0.00027979,2]
[328578487,1717559449726,-156.98374021,0.00027979,2]
[328578489,1717559449736,-285.32097099,0.00027979,2]
[328578491,1717559449745,-766.07743104,0.00027979,2]
[328578493,1717559449756,-310.02420525,0.00027979,2]
[328578495,1717559449766,-411.78576203,0.00027979,2]
[328578497,1717559449775,-474.62275452,0.0002798,2]
[328578499,1717559449785,-150.0,0.0002798,2]
[328578501,1717559449795,-468.50367616,0.00028,2]
[328578503,1717559449804,-529.94352255,0.00028,2]
[328578505,1717559449814,-1202.87340608,0.00028,2]
[328578507,1717559449824,-2000.0,0.00028,2]
[328578509,1717559449834,-200.0,0.00028,2]
[328578511,1717559449844,-2000.0,0.00028,2]
[328578514,1717559449854,-200.0,0.00028,2]
[328578516,1717559449864,-2000.0,0.00028,2]
[328578518,1717559449873,-200.0,0.00028,2]
[328578520,1717559449883,-1734.73036956,0.00028,2]
[328578522,1717559449892,-200.0,0.00028,2]
[328578524,1717559449902,-150.0,0.00028,2]
[328578526,1717559449911,-151.0,0.00028018,7]
[328578528,1717559449920,-1909.57,0.00028073,2]
[328578530,1717559449930,-279.33035907,0.00028117,2]
[328578532,1717559449943,-150.0,0.00028121,7]
[328578534,1717559449952,-3630.22015091,0.00028128,2]
[328578536,1717559449962,-10917.96371662,0.00028128,2]
[328578538,1717559449972,-153.7,0.00028179,2]
[328578540,1717559449982,-1457.902234,0.00028189,2]
[328578543,1717559449993,-779.515329,0.00028189,2]
[328578545,1717559450003,-6430.164878,0.00028189,2]
[328578546,1717559450013,-246.193774,0.00028189,2]
[328578547,1717559450023,-20152.335925,0.00028189,2]
[328578548,1717559450032,-1301.848783,0.00028189,2]
[328578549,1717559450042,-904.255618,0.00028189,2]
[328578550,1717559450051,-175.859741,0.00028189,2]
[328578551,1717559450061,-182.576979,0.00028189,2]
[328578552,1717559450071,-25720.659512,0.00028189,2]
[328578553,1717559450081,-369.290661,0.00028189,2]
[328578554,1717559450091,-29671.322223,0.00028189,2]
[328578555,1717559450105,-3161.0,0.000282,3]
[328578556,1717559450116,-783.0,0.000282,3]
[328578557,1717559450127,-2000.0,0.0002828,2]
[328578558,1717559450138,-200.0,0.0002828,2]
[328578559,1717559450147,-2000.0,0.0002828,2]
[328578560,1717559450157,-200.0,0.0002828,2]
[328578561,1717559450167,-2000.0,0.0002828,2]
[328578562,1717559450179,-200.0,0.0002828,2]
[328578563,1717559450188,-200.0,0.0002828,2]
[328578564,1717559450198,-172.03387253,0.00028305,2]
[328578565,1717559450208,-21700.84416168,0.00028326,2]
[328578566,1717559450217,-151.0,0.00028335,7]
[328578567,1717559450227,-150.0,0.00028343,7]
[328578568,1717559450237,-153.06,0.00028356,2]
[328578569,1717559450247,-150.0,0.00028356,2]
[328578570,1717559450258,-150.0,0.00028356,2]
[328578571,1717559450268,-150.0,0.00028356,2]
[328578572,1717559450278,-150.0,0.00028356,2]
[328578573,1717559450288,-300.0,0.000285,7]
[328578574,1717559450298,-1457.902234,0.00028533,2]
[328578575,1717559450307,-779.515329,0.00028533,2]
[328578576,1717559450317,-6430.164878,0.00028533,2]
[328578577,1717559450327,-246.193774,0.00028533,2]
[328578578,1717559450336,-20152.335925,0.00028533,2]
[328578579,1717559450346,-1301.848783,0.00028533,2]
[328578580,1717559450357,-904.255618,0.00028533,2]
[328578581,1717559450366,-175.859741,0.00028533,2]
[328578582,1717559450376,-182.576979,0.00028533,2]
[328578583,1717559450386,-25720.659512,0.00028533,2]
[328578584,1717559450398,-369.290661,0.00028533,2]
[328578585,1717559450408,-29671.322223,0.00028533,2]
[328578586,1717559450418,-2000.0,0.00028563,2]
[328578587,1717559450428,-200.0,0.00028563,2]
[328578588,1717559450438,-2000.0,0.00028563,2]
[328578589,1717559450447,-200.0,0.00028563,2]
[328578590,1717559450457,-2000.0,0.00028563,2]
[328578591,1717559450467,-200.0,0.00028563,2]
[328578592,1717559450476,-150.0,0.00028564,7]
[328578593,1717559450486,-9332.30605902,0.00028565,2]
[328578594,1717559450497,-151.0,0.0002859,4]
[328578595,1717559450508,-161.12243825,0.0002861,3]
[328578596,1717559450518,-500.0,0.00028709,2]
[328578597,1717559450528,-200.0,0.00028709,2]
[328578598,1717559450538,-500.0,0.00028747,2]
[328578599,1717559450549,-1945.07112564,0.00028763,2]
[328578600,1717559450559,-150.0,0.00028786,7]
[328578601,1717559450570,-218.3734264,0.00028799,2]
[328578602,1717559450580,-17958.94294477,0.00028801,2]
[328578603,1717559450590,-7576.79820896,0.00028801,2]
[328578604,1717559450600,-555.01703883,0.00028801,2]
[328578605,1717559450609,-287.76014806,0.00028801,5]
[328578606,1717559450620,-997.072,0.00028845,2]
[328578607,1717559450630,-390.629,0.00028845,2]
[328578608,1717559450640,-620.954,0.00028845,2]
[328578609,1717559450650,-1280.534,0.00028845,2]
[328578610,1717559450660,-178.616,0.00028845,2]
[328578611,1717559450670,-448.192,0.00028845,2]
[328578612,1717559450680,-1663.797,0.00028845,2]
[328578613,1717559450690,-2426.215,0.00028845,2]
[328578614,1717559450699,-451.06,0.00028845,2]
[328578615,1717559450710,-152.188,0.00028845,2]
[328578616,1717559450719,-167.324,0.00028845,2]
[328578617,1717559450797,-817.746,0.00028845,2]
[328578618,1717559450808,-150.961,0.00028845,2]
[328578619,1717559450818,-1322.517,0.00028845,2]
[328578620,1717559450827,-219.0,0.00028845,2]
[328578621,1717559450837,-3202.726,0.00028845,2]
[328578622,1717559450847,-549.633,0.00028845,2]
[328578623,1717559450859,-151.0,0.00028845,2]
[328578624,1717559450869,-5206.812,0.00028845,2]
[328578625,1717559450879,-153.141,0.00028845,2]
[328578626,1717559450889,-5833.376,0.00028845,2]
[328578627,1717559450899,-38015.0,0.00028845,2]
[328578628,1717559450910,-264.847,0.00028845,2]
[328578629,1717559450921,-150.0,0.00028845,2]
[328578630,1717559450931,-152.036,0.00028845,2]
[328578631,1717559450941,-1484.954,0.00028845,2]
[328578632,1717559450951,-200.0,0.00028845,2]
[328578633,1717559450961,-294.848,0.00028845,2]
[328578634,1717559450972,-152.453,0.00028845,2]
[328578635,1717559450982,-167.735,0.00028845,2]
[328578636,1717559450991,-156.314,0.00028845,2]
[328578637,1717559451003,-1074.087,0.00028845,2]
[328578638,1717559451014,-286.525,0.00028845,2]
[328578639,1717559451024,-263.829,0.00028845,2]
[328578640,1717559451035,-183.792,0.00028845,2]
[328578641,1717559451045,-160.548,0.00028845,2]
[328578642,1717559451054,-191.781,0.00028845,2]
[328578643,1717559451063,-2000.0,0.00028848,2]
[328578644,1717559451074,-200.0,0.00028848,2]
[328578645,1717559451083,-2000.0,0.00028848,2]
[328578646,1717559451093,-200.0,0.00028848,2]
[328578647,1717559451106,-2000.0,0.00028848,2]
[328578648,1717559451117,-200.0,0.00028848,2]
[328578649,1717559451127,-21700.84416168,0.0002885,2]
[328578650,1717559451143,-209.99,0.00028856,15]
[328578651,1717559451155,-150.5,0.00028866,15]
[328578652,1717559451166,-1457.902234,0.00028877,2]
[328578653,1717559451176,-779.515329,0.00028877,2]
[328578654,1717559451188,-6430.164878,0.00028877,2]
[328578655,1717559451198,-246.193774,0.00028877,2]
[328578656,1717559451207,-20152.335925,0.00028877,2]
[328578657,1717559451219,-1301.848783,0.00028877,2]
[328578658,1717559451228,-904.255618,0.00028877,2]
[328578659,1717559451238,-175.859741,0.00028877,2]
[328578660,1717559451249,-182.576979,0.00028877,2]
[328578661,1717559451263,-25720.659512,0.00028877,2]
[328578662,1717559451273,-369.290661,0.00028877,2]
[328578663,1717559451285,-29671.322223,0.00028877,2]
[328578664,1717559451296,-187.831712,0.00028877,2]
[328578665,1717559451311,-170.204094,0.00028877,2]
[328578666,1717559451324,-1000.0,0.0002888,2]
[328578667,1717559451336,-63704.5695666,0.00028884,2]
[328578668,1717559451355,-2044.8877494,0.00028884,2]
[328578669,1717559451368,-22551.9422737,0.00028884,2]
[328578670,1717559451379,-11189.3828007,0.00028884,2]
[328578671,1717559451389,-157.060512,0.00028888,3]
[328578672,1717559451399,-2821.6308803,0.00028894,2]
[328578673,1717559451409,-239.060511,0.00028898,3]
[328578674,1717559451418,-196.85052775,0.00028898,2]
[328578675,1717559451428,-5808.45337452,0.00028898,2]
[328578676,1717559451439,-155.78402403,0.00028899,2]
[328578677,1717559451448,-348.69299748,0.00028899,2]
[328578678,1717559451459,-155.23879139,0.00028899,2]
[328578679,1717559451468,-1370.66445732,0.00028899,2]
[328578680,1717559451478,-364.93310385,0.00028899,2]
[328578681,1717559451489,-150.0,0.00028899,2]
[328578682,1717559451499,-54072.70117747,0.000289,2]
[328578683,1717559451511,-345.0,0.000289,2]
[328578684,1717559451520,-150.0,0.000289,6]
[328578685,1717559451530,-6299.0,0.00028904,4]
[328578686,1717559451539,-5355.0,0.00028904,4]
[328578687,1717559451549,-151.25620831,0.00028962,2]
[328578688,1717559451559,-4821.98,0.00028972,2]
[328578689,1717559451569,-268.0,0.00028979,15]
[328578690,1717559451578,-9827.02072793,0.0002898,2]
[328578691,1717559451588,-57140.2085749,0.0002898,2]
[328578692,1717559451597,-1834.174743,0.0002898,2]
[328578693,1717559451607,-2530.8793092,0.0002898,2]
[328578694,1717559451616,-2240.1277382,0.0002898,2]
[328578695,1717559451627,-20228.104421,0.0002898,2]
[328578696,1717559451637,-17904.2665683,0.0002898,2]
[328578697,1717559451647,-10036.3862656,0.0002898,2]
[328578698,1717559451656,-268.0,0.00028989,15]
[328578699,1717559451667,-4895.45,0.0002899,2]
[328578700,1717559451676,-4860.38,0.0002899,2]
[328578701,1717559451685,-4983.92,0.0002899,2]
[328578702,1717559451695,-4957.8,0.0002899,2]
[328578703,1717559451704,-265.85210799,0.0002899,2]
[328578704,1717559451714,-2078.57603791,0.00028996,2]
[328578705,1717559451724,-60000.0,0.00029,8]
[328578706,1717559451734,-243.70233796,0.00029,30]
[328578707,1717559451744,-4166.39963549,0.00029,2]
[328578708,1717559451754,-1528.12640715,0.00029,7]
[328578709,1717559451764,-25000.0,0.00029,2]
[328578710,1717559451773,-1053.46018427,0.00029,30]
[328578711,1717559451783,-5000.0,0.00029,7]
[328578712,1717559451793,-295209.38786996,0.00029,2]
[328578713,1717559451802,-12760.46555488,0.00029,3]
[328578714,1717559451812,-1350.0,0.00029,2]
[328578715,1717559451821,-1000.0,0.00029,3]
[328578716,1717559451831,-348.04465327,0.00029,2]
[328578717,1717559451841,-348.04465327,0.00029,2]
[328578718,1717559451850,-348.04465327,0.00029,2]
[328578719,1717559451859,-348.04465327,0.00029,2]
[328578720,1717559451870,-348.04465327,0.00029,2]
[328578721,1717559451879,-348.04465327,0.00029,2]
[328578722,1717559451890,-348.04465327,0.00029,2]
[328578723,1717559451900,-348.04465327,0.00029,2]
[328578724,1717559451910,-348.04465327,0.00029,2]
[328578725,1717559451919,-348.04465327,0.00029,2]
[328578726,1717559451928,-348.04465327,0.00029,2]
[328578727,1717559451938,-348.04465327,0.00029,2]
[328578728,1717559451948,-348.04465327,0.00029,2]
[328578729,1717559451958,-348.04465327,0.00029,2]
[328578730,1717559451967,-348.04465327,0.00029,2]
[328578731,1717559451977,-348.04465327,0.00029,2]
[328578732,1717559451987,-348.04465327,0.00029,2]
[328578733,1717559451997,-348.04465327,0.00029,2]
[328578734,1717559452008,-348.04465327,0.00029,2]
[328578735,1717559452018,-348.04465327,0.00029,2]
[328578736,1717559452027,-348.04465327,0.00029,2]
[328578737,1717559452037,-348.04465327,0.00029,2]
[328578738,1717559452046,-348.04465327,0.00029,2]
[328578739,1717559452056,-348.04465327,0.00029,2]
[328578740,1717559452065,-348.04465327,0.00029,2]
[328578741,1717559452074,-348.04465327,0.00029,2]
[328578742,1717559452084,-348.04465327,0.00029,2]
[328578743,1717559452094,-348.04465327,0.00029,2]
[328578744,1717559452107,-348.04465327,0.00029,2]
[328578745,1717559452116,-348.04465327,0.00029,2]
[328578746,1717559452125,-348.04465327,0.00029,2]
[328578747,1717559452135,-348.04465327,0.00029,2]
[328578748,1717559452146,-348.04465327,0.00029,2]
[328578749,1717559452155,-348.04465327,0.00029,2]
[328578750,1717559452165,-348.04465327,0.00029,2]
[328578751,1717559452175,-348.04465327,0.00029,2]
[328578752,1717559452184,-348.04465327,0.00029,2]
[328578753,1717559452194,-348.04465327,0.00029,2]
[328578754,1717559452203,-348.04465327,0.00029,2]
[328578755,1717559452212,-348.04465327,0.00029,2]
[328578756,1717559452221,-348.04465327,0.00029,2]
[328578757,1717559452230,-348.04465327,0.00029,2]
[328578758,1717559452239,-348.04465327,0.00029,2]
[328578759,1717559452248,-348.04465327,0.00029,2]
[328578760,1717559452258,-348.04465327,0.00029,2]
[328578761,1717559452267,-348.04465327,0.00029,2]
[328578762,1717559452276,-348.04465327,0.00029,2]
[328578763,1717559452285,-348.04465327,0.00029,2]
[328578764,1717559452294,-348.04465327,0.00029,2]
[328578765,1717559452303,-348.04465327,0.00029,2]
[328578766,1717559452313,-348.04465327,0.00029,2]
[328578767,1717559452322,-348.04465327,0.00029,2]
[328578768,1717559452333,-348.04465327,0.00029,2]
[328578769,1717559452342,-348.04465327,0.00029,2]
[328578770,1717559452352,-348.04465327,0.00029,2]
[328578771,1717559452361,-348.04465327,0.00029,2]
[328578772,1717559452370,-348.04465327,0.00029,2]
[328578773,1717559452380,-348.04465327,0.00029,2]
[328578774,1717559452389,-348.04465327,0.00029,2]
[328578775,1717559452399,-348.04465327,0.00029,2]
[328578776,1717559452409,-348.04465327,0.00029,2]
[328578777,1717559452418,-348.04465327,0.00029,2]
[328578778,1717559452428,-348.04465327,0.00029,2]
[328578779,1717559452438,-348.04465327,0.00029,2]
[328578780,1717559452447,-348.04465327,0.00029,2]
[328578781,1717559452457,-348.04465327,0.00029,2]
[328578782,1717559452466,-348.04465327,0.00029,2]
[328578783,1717559452476,-348.04465327,0.00029,2]
[328578784,1717559452486,-348.04465327,0.00029,2]
[328578785,1717559452496,-348.04465327,0.00029,2]
[328578786,1717559452506,-348.04465327,0.00029,2]
[328578787,1717559452515,-348.04465327,0.00029,2]
[328578788,1717559452525,-348.04465327,0.00029,2]
[328578789,1717559452535,-348.04465327,0.00029,2]
[328578790,1717559452544,-348.04465327,0.00029,2]
[328578791,1717559452554,-348.04465327,0.00029,2]
[328578792,1717559452563,-348.04465327,0.00029,2]
[328578793,1717559452573,-348.04465327,0.00029,2]
[328578794,1717559452582,-348.04465327,0.00029,2]
[328578795,1717559452592,-348.04465327,0.00029,2]
[328578796,1717559452601,-150.0,0.00029007,7]
[328578797,1717559452611,-3630.22015091,0.00029014,15]
[328578798,1717559452620,-10917.96371662,0.00029014,15]
[328578799,1717559452630,-233.0,0.0002902,2]
[328578800,1717559452639,-221.0,0.0002902,2]
[328578801,1717559452649,-150.0,0.00029128,2]
[328578802,1717559452659,-2000.0,0.00029137,2]
[328578803,1717559452668,-200.0,0.00029137,2]
[328578804,1717559452678,-2000.0,0.00029137,2]
[328578805,1717559452688,-200.0,0.00029137,2]
[328578806,1717559452697,-2000.0,0.00029137,2]
[328578807,1717559452706,-200.0,0.00029137,2]
[328578808,1717559452715,-151.0,0.00029168,7]
[328578809,1717559452725,-151.0,0.00029173,2]
[328578810,1717559452734,-150.78,0.00029178,2]
[328578811,1717559452744,-150.0,0.00029221,2]
[328578812,1717559452755,-1525.60167,0.00029225,2]
[328578813,1717559452765,-150.0,0.00029229,7]
[328578814,1717559452775,-150.0,0.00029309,2]
[328578815,1717559452785,-150.0,0.00029318,2]
[328578816,1717559452797,-150.0,0.00029326,2]
[328578817,1717559452810,-218.37342639,0.0002935,2]
[328578818,1717559452822,-150.0,0.00029371,2]
[328578819,1717559452832,-156.84533381,0.00029371,2]
[328578820,1717559452841,-21700.84416168,0.00029375,2]
[328578821,1717559452851,-156.46295835,0.00029386,2]
[328578822,1717559452862,-150.0,0.00029392,2]
[328578823,1717559452873,-150.0,0.000294,6]
[328578824,1717559452883,-151.78981399,0.00029422,2]
[328578825,1717559452893,-150.0,0.00029423,2]
[328578826,1717559452902,-557.18,0.00029431,2]
[328578827,1717559452912,-151.78981399,0.00029441,2]
[328578828,1717559452922,-150.0,0.00029448,2]
[328578829,1717559452932,-150.0,0.0002945,7]
[328578830,1717559452942,-151.78981399,0.00029465,2]
[328578831,1717559452952,-150.0,0.00029474,2]
[328578832,1717559452962,-14230.58901261,0.0002948,2]
[328578833,1717559452972,-400.0,0.00029484,31]
[328578834,1717559452982,-150.0,0.00029493,2]
[328578835,1717559452992,-152.01621812,0.000295,2]
[328578836,1717559453001,-2953.244345,0.000295,2]
[328578837,1717559453012,-228.92207949,0.000295,3]
[328578838,1717559453021,-233.0,0.0002951,2]
[328578839,1717559453031,-221.0,0.0002951,2]
[328578840,1717559453041,-155.69993896,0.00029511,2]
[328578841,1717559453051,-150.0,0.00029515,2]
[328578842,1717559453060,-150.0,0.00029525,2]
[328578843,1717559453069,-150.0,0.00029534,2]
[328578844,1717559453079,-151.88147835,0.00029537,2]
[328578845,1717559453088,-156.46295835,0.00029541,2]
[328578846,1717559453103,-175.55555524,0.00029552,2]
[328578847,1717559453113,-50575.8475832,0.00029569,2]
[328578848,1717559453123,-1949.3761672,0.00029569,2]
[328578849,1717559453132,-15580.4287156,0.00029569,2]
[328578850,1717559453143,-8883.3897306,0.00029569,2]
[328578851,1717559453153,-500.0,0.0002957,2]
[328578852,1717559453163,-500.0,0.0002957,2]
[328578853,1717559453172,-603.0906634,0.0002957,2]
[328578854,1717559453182,-150.0,0.00029573,2]
[328578855,1717559453192,-156.46295835,0.00029583,2]
[328578856,1717559453201,-156.46295835,0.00029585,2]
[328578857,1717559453211,-265.14255554,0.00029589,6]
[328578858,1717559453220,-500.0,0.00029589,6]
[328578859,1717559453230,-500.0,0.00029589,6]
[328578860,1717559453239,-500.0,0.00029589,6]
[328578861,1717559453249,-500.0,0.00029589,6]
[328578862,1717559453260,-207.79914048,0.00029589,6]
[328578863,1717559453269,-539.34243101,0.00029589,6]
[328578864,1717559453278,-559.29465409,0.00029589,6]
[328578865,1717559453288,-371.40620376,0.00029589,6]
[328578866,1717559453297,-500.0,0.00029589,6]
[328578867,1717559453307,-500.0,0.00029589,6]
[328578868,1717559453317,-500.0,0.00029589,6]
[328578869,1717559453326,-500.0,0.00029589,6]
[328578870,1717559453335,-221.89081773,0.00029589,6]
[328578871,1717559453345,-520.51099722,0.00029589,6]
[328578872,1717559453355,-532.56390396,0.00029589,6]
[328578873,1717559453364,-500.0,0.00029589,2]
[328578874,1717559453374,-500.0,0.00029589,2]
[328578875,1717559453383,-500.0,0.00029589,2]
[328578876,1717559453393,-500.0,0.00029589,2]
[328578877,1717559453403,-500.0,0.00029589,2]
[328578878,1717559453413,-500.0,0.00029589,2]
[328578879,1717559453422,-500.0,0.00029589,2]
[328578880,1717559453432,-500.0,0.00029589,2]
[328578881,1717559453441,-500.0,0.00029589,2]
[328578882,1717559453451,-500.0,0.00029589,2]
[328578883,1717559453460,-500.0,0.00029589,2]
[328578884,1717559453470,-500.0,0.00029589,2]
[328578885,1717559453480,-500.0,0.00029589,2]
[328578886,1717559453489,-500.0,0.00029589,2]
[328578887,1717559453499,-500.0,0.00029589,2]
[328578888,1717559453510,-500.0,0.00029589,2]
[328578889,1717559453520,-500.0,0.00029589,2]
[328578890,1717559453530,-500.0,0.00029589,6]
[328578891,1717559453540,-500.0,0.00029589,6]
[328578892,1717559453549,-162.17493635,0.00029589,6]
[328578893,1717559453559,-513.93329963,0.00029589,6]
[328578894,1717559453568,-500.0,0.00029589,7]
[328578895,1717559453578,-500.0,0.00029589,7]
[328578896,1717559453587,-500.0,0.00029589,7]
[328578897,1717559453597,-500.0,0.00029589,7]
[328578898,1717559453607,-500.0,0.00029589,7]
[328578899,1717559453616,-500.0,0.00029589,7]
[328578900,1717559453626,-500.0,0.00029589,7]
[328578901,1717559453636,-500.0,0.00029589,7]
[328578902,1717559453646,-169.91270623,0.00029589,6]
[328578903,1717559453656,-500.0,0.00029589,7]
[328578904,1717559453666,-500.0,0.00029589,7]
[328578905,1717559453676,-500.0,0.00029589,7]
[328578906,1717559453685,-500.0,0.00029589,7]
[328578907,1717559453695,-500.0,0.00029589,7]
[328578908,1717559453705,-500.0,0.00029589,7]
[328578909,1717559453715,-500.0,0.00029589,7]
[328578910,1717559453725,-500.0,0.00029589,7]
[328578911,1717559453734,-500.0,0.00029589,7]
[328578912,1717559453745,-500.0,0.00029589,7]
[328578913,1717559453757,-500.0,0.00029589,7]
[328578914,1717559453767,-336.49886306,0.00029589,7]
[328578915,1717559453777,-500.0,0.00029589,6]
[328578916,1717559453787,-500.0,0.00029589,6]
[328578917,1717559453797,-500.0,0.00029589,6]
[328578918,1717559453807,-500.0,0.00029589,6]
[328578919,1717559453817,-500.0,0.00029589,6]
[328578920,1717559453827,-500.0,0.00029589,6]
[328578921,1717559453837,-500.0,0.00029589,6]
[328578922,1717559453847,-500.0,0.00029589,6]
[328578923,1717559453857,-500.0,0.00029589,6]
[328578924,1717559453867,-500.0,0.00029589,6]
[328578925,1717559453876,-500.0,0.00029589,6]
[328578926,1717559453886,-500.0,0.00029589,6]
[328578927,1717559453896,-500.0,0.00029589,6]
[328578928,1717559453906,-276.63807817,0.00029589,6]
[328578929,1717559453915,-500.0,0.00029589,6]
[328578930,1717559453925,-500.0,0.00029589,6]
[328578931,1717559453935,-500.0,0.00029589,6]
[328578932,1717559453946,-500.0,0.00029589,6]
[328578933,1717559453956,-609.97623253,0.00029589,6]
[328578934,1717559453966,-500.0,0.00029589,6]
[328578935,1717559453976,-500.0,0.00029589,6]
[328578936,1717559453986,-500.0,0.00029589,6]
[328578937,1717559453996,-500.0,0.00029589,6]
[328578938,1717559454008,-500.0,0.00029589,6]
[328578939,1717559454018,-500.0,0.00029589,6]
[328578940,1717559454028,-500.0,0.00029589,6]
[328578941,1717559454039,-500.0,0.00029589,6]
[328578942,1717559454049,-500.0,0.00029589,6]
[328578943,1717559454063,-250.35931141,0.00029589,6]
[328578944,1717559454074,-500.0,0.00029589,6]
[328578945,1717559454085,-317.38179858,0.00029589,6]
[328578946,1717559454098,-500.0,0.00029589,6]
[328578947,1717559454109,-500.0,0.00029589,6]
[328578948,1717559454119,-500.0,0.00029589,6]
[328578949,1717559454129,-500.0,0.00029589,6]
[328578950,1717559454140,-500.0,0.00029589,6]
[328578951,1717559454151,-500.0,0.00029589,6]
[328578952,1717559454162,-500.0,0.00029589,6]
[328578953,1717559454174,-500.0,0.00029589,6]
[328578954,1717559454184,-500.0,0.00029589,6]
[328578955,1717559454195,-500.0,0.00029589,6]
[328578956,1717559454204,-500.0,0.00029589,6]
[328578957,1717559454214,-500.0,0.00029589,6]
[328578958,1717559454224,-500.0,0.00029589,6]
[328578959,1717559454234,-500.0,0.00029589,6]
[328578960,1717559454245,-150.57094868,0.00029589,6]
[328578961,1717559454255,-500.0,0.00029589,6]
[328578962,1717559454266,-500.0,0.00029589,6]
[328578963,1717559454276,-500.0,0.00029589,6]
[328578964,1717559454286,-169.14683134,0.00029589,6]
[328578965,1717559454296,-500.0,0.00029589,6]
[328578966,1717559454306,-500.0,0.00029589,6]
[328578967,1717559454317,-500.0,0.00029589,6]
[328578968,1717559454326,-500.0,0.00029589,6]
[328578969,1717559454337,-500.0,0.00029589,6]
[328578970,1717559454347,-500.0,0.00029589,6]
[328578971,1717559454357,-500.0,0.00029589,6]
[328578972,1717559454367,-500.0,0.00029589,6]
[328578973,1717559454377,-500.0,0.00029589,6]
[328578974,1717559454387,-453.72331293,0.00029589,6]
[328578975,1717559454397,-165.49694028,0.00029589,6]
[328578976,1717559454407,-500.0,0.00029589,6]
[328578977,1717559454417,-500.0,0.00029589,6]
[328578978,1717559454427,-500.0,0.00029589,6]
[328578979,1717559454437,-500.0,0.00029589,6]
[328578980,1717559454448,-500.0,0.00029589,6]
[328578981,1717559454457,-373.22124704,0.00029589,6]
[328578982,1717559454467,-500.0,0.00029589,6]
[328578983,1717559454478,-500.0,0.00029589,6]
[328578984,1717559454488,-500.0,0.00029589,6]
[328578985,1717559454498,-500.0,0.00029589,6]
[328578986,1717559454510,-500.0,0.00029589,6]
[328578987,1717559454520,-500.0,0.00029589,6]
[328578988,1717559454532,-528.51082259,0.00029589,6]
[328578989,1717559454692,-500.0,0.00029589,6]
[328578990,1717559454701,-500.0,0.00029589,6]
[328578991,1717559454712,-500.0,0.00029589,6]
[328578992,1717559454721,-500.0,0.00029589,6]
[328578993,1717559454730,-500.0,0.00029589,6]
[328578994,1717559454740,-500.0,0.00029589,6]
[328578995,1717559454749,-620.40237363,0.00029589,6]
[328578996,1717559454761,-716.62,0.00029589,6]
[328578997,1717559454770,-716.62,0.00029589,6]
[328578998,1717559454780,-383.17167091,0.00029589,6]
[328578999,1717559454790,-716.62,0.00029589,6]
[328579000,1717559454800,-716.62,0.00029589,6]
[328579001,1717559454809,-716.62,0.00029589,6]
[328579002,1717559454820,-716.62,0.00029589,6]
[328579003,1717559454830,-716.62,0.00029589,6]
[328579004,1717559454840,-716.62,0.00029589,6]
[328579005,1717559454850,-716.62,0.00029589,6]
[328579006,1717559454859,-716.62,0.00029589,6]
[328579007,1717559454869,-716.62,0.00029589,6]
[328579008,1717559454879,-716.62,0.00029589,6]
[328579009,1717559454888,-716.62,0.00029589,6]
[328579010,1717559454898,-716.62,0.00029589,6]
[328579011,1717559454908,-716.62,0.00029589,6]